Workbook

Sheet chasum
A1: Preliminary FY26 Charter School FTE and Tuition Q2 | AD1: blank | AL1: =SUM(AI1:AK1) -> 0 | AP1: =SUM(AM1:AO1) -> 0 | AQ1: =+AL1+AP1 -> 0 | AY1: =SUM(AV1:AX1) -> 0 | CF1: derived | CJ1: derived | CK1: derived | CR1: derived
CF6: =SUM(CC6:CE6) -> 0 | CJ6: =SUM(CG6:CI6) -> 0 | CK6: =CF6+CJ6 -> 0 | CR6: =SUM(CO6:CQ6) -> 0
D7: F T E | J7: T U I T I O N | AA7: R A W C H A R T E R D A T A | AS7: S I B L I N G S | BA7: P R I V A T E / H O M E S C H O O L E D | CA7: P R I O R Y E A R A D J U S T M E N T S - includes siblings | CM7: P R I O R Y R S I B L I N G O N L Y A D J
A8: LEA | B8: CHARTER SCHOOL | C8: PROJECTED (MAXIMUM) FTE | D8: FTE IN EXCESS OF PROJECTION MAX | E8: TRANS- POR- TATION FTE | F8: SIBLING FTE | G8: REPORTED FTE | I8: FOUNDATION & ABOVE FOUND TUITION | J8: TRANSPOR- TATION TUITION | K8: FACILITILES TUITION | L8: TOTAL PAYMENT TO CHARTER | AA8: Lea | AB8: Total FTE | AC8: Cap'd FTE | AD8: Transp FTE | AE8: State Tuit Sib FTE | AF8: Unadj Local Tuition | AG8: Sibling Reduction | AH8: NSS Reduction | AI8: Local Base Tuition Payment | AJ8: Unadj Local Transp | AK8: Local Facilities Tuition | AL8: Total Local Payment | AM8: State Found & Above Found Tuition (sibs) | AN8: State Transp | AO8: State Facilities Tuition | AP8: Total State Payment | AQ8: Total Payment to Charter | AS8: LEA | AT8: Matched Sibling Headct | AU8: State Tuit Sib FTE | AV8: Foundation Tuition | AW8: Trans- portation | AX8: Facilities Tuition | AY8: Total Sibling Tuition | BA8: Priv/HS FTE | BB8: Priv/HS Base Payment | BC8: Priv/HS Transp | BD8: Priv/HS Facilities Tuition | BE8: Total Priv/HS Tuition | CA8: LEA | CB8: FTE | CC8: Local Found Adj | CD8: Local Transp Adj | CE8: Local Facilities Adj | CF8: TOTAL LOCAL Adj | CG8: State Found Adj | CH8: State Transp Adj | CI8: State Facilities Adj | CJ8: TOTAL STATE Adj | CK8: TOTAL PRIOR YEAR ADJ | CM8: LEA | CN8: FTE | CO8: Sibling Found Adj | CP8: Sibling Transp Adj | CQ8: Sibling Facilities Adj | CR8: TOTAL Sibling Adj
A10: 409 | B10: ALMA DEL MAR | C10: 1044 | F10: 0 | G10: 1044 | I10: 20813968 | J10: 0 | K10: 1240272 | L10: 22054240 | AA10: 409 | AB10: 1044 | AC10: 0 | AD10: 0 | AE10: 0 | AF10: 20813968 | AG10: 0 | AH10: 0 | AI10: 20813968 | AJ10: 0 | AK10: 1240272 | AL10: 22054240 | AM10: 0 | AN10: 0 | AO10: 0 | AP10: 0 | AQ10: 22054240 | AS10: 409 | AT10: 138 | AU10: 0 | AV10: 0 | AW10: 0 | AX10: 0 | AY10: 0 | BA10: 0 | BB10: 0 | BC10: 0 | BD10: 0 | BE10: 0 | CA10: 409 | CB10: 0 | CC10: 0 | CD10: 0 | CE10: 0 | CF10: 0 | CG10: 0 | CH10: 0 | CI10: 0 | CJ10: 0 | CK10: 0 | CM10: 409 | CR10: 0
A11: 410 | B11: EXCEL ACADEMY | C11: 1400 | F11: 0 | G11: 1376 | I11: 33514351 | J11: 0 | K11: 1634688 | L11: 35149039 | AA11: 410 | AB11: 1376 | AC11: 0 | AD11: 0 | AE11: 0 | AF11: 33514351 | AG11: 0 | AH11: 0 | AI11: 33514351 | AJ11: 0 | AK11: 1634688 | AL11: 35149039 | AM11: 0 | AN11: 0 | AO11: 0 | AP11: 0 | AQ11: 35149039 | AS11: 410 | AT11: 380 | AU11: 0 | AV11: 0 | AW11: 0 | AX11: 0 | AY11: 0 | BA11: 0 | BB11: 0 | BC11: 0 | BD11: 0 | BE11: 0 | CA11: 410 | CB11: 0 | CC11: 0 | CD11: 0 | CE11: 0 | CF11: 0 | CG11: 0 | CH11: 0 | CI11: 0 | CJ11: 0 | CK11: 0 | CM11: 410 | CR11: 0
A12: 412 | B12: ACADEMY OF THE PACIFIC RIM | C12: 545 | F12: 0.1252193614 | G12: 501 | I12: 13593201 | J12: 0 | K12: 595188 | L12: 14188389 | AA12: 412 | AB12: 501 | AC12: 0 | AD12: 0 | AE12: 0.1252193614 | AF12: 13593201 | AG12: 2271.228777 | AH12: 0 | AI12: 13590929.77 | AJ12: 0 | AK12: 595038 | AL12: 14185967.77 | AM12: 2271.228777 | AN12: 0 | AO12: 150 | AP12: 2421.228777 | AQ12: 14188389 | AS12: 412 | AT12: 66 | AU12: 0.1252193614 | AV12: 2271.228777 | AW12: 0 | AX12: 150 | AY12: 2421.228777 | BA12: 0 | BB12: 0 | BC12: 0 | BD12: 0 | BE12: 0 | CA12: 412 | CB12: 0 | CC12: 0 | CD12: 0 | CE12: 0 | CF12: 0 | CG12: 0 | CH12: 0 | CI12: 0 | CJ12: 0 | CK12: 0 | CM12: 412 | CR12: 0
A13: 413 | B13: FOUR RIVERS | C13: 218 | F13: 0.4516453631 | G13: 218 | I13: 4701031 | J13: 0 | K13: 258984 | L13: 4960015 | AA13: 413 | AB13: 218 | AC13: 0 | AD13: 0 | AE13: 0.4516453631 | AF13: 4701031 | AG13: 14081.39913 | AH13: 0 | AI13: 4686949.601 | AJ13: 0 | AK13: 258448 | AL13: 4945397.601 | AM13: 14081.39913 | AN13: 0 | AO13: 536 | AP13: 14617.39913 | AQ13: 4960015 | AS13: 413 | AT13: 52 | AU13: 0.4516453631 | AV13: 14081.39913 | AW13: 0 | AX13: 536 | AY13: 14617.39913 | BA13: 0 | BB13: 0 | BC13: 0 | BD13: 0 | BE13: 0 | CA13: 413 | CB13: 0 | CC13: 0 | CD13: 0 | CE13: 0 | CF13: 0 | CG13: 0 | CH13: 0 | CI13: 0 | CJ13: 0 | CK13: 0 | CM13: 413 | CR13: 0
A14: 414 | B14: BERKSHIRE ARTS AND TECHNOLOGY | C14: 363 | F14: 0 | G14: 357 | I14: 7330136 | J14: 0 | K14: 424116 | L14: 7754252 | AA14: 414 | AB14: 357 | AC14: 0 | AD14: 0 | AE14: 0 | AF14: 7330136 | AG14: 0 | AH14: 0 | AI14: 7330136 | AJ14: 0 | AK14: 424116 | AL14: 7754252 | AM14: 0 | AN14: 0 | AO14: 0 | AP14: 0 | AQ14: 7754252 | AS14: 414 | AT14: 86 | AU14: 0 | AV14: 0 | AW14: 0 | AX14: 0 | AY14: 0 | BA14: 0 | BB14: 0 | BC14: 0 | BD14: 0 | BE14: 0 | CA14: 414 | CB14: 0 | CC14: 0 | CD14: 0 | CE14: 0 | CF14: 0 | CG14: 0 | CH14: 0 | CI14: 0 | CJ14: 0 | CK14: 0 | CM14: 414 | CR14: 0
A15: 416 | B15: BOSTON PREPARATORY | C15: 700 | F15: 0.04173978713 | G15: 670 | I15: 18541093 | J15: 0 | K15: 799263 | L15: 19340356 | AA15: 416 | AB15: 670 | AC15: 0 | AD15: 0 | AE15: 0.04173978713 | AF15: 18465922 | AG15: 799.8595408 | AH15: 0 | AI15: 18465122.14 | AJ15: 0 | AK15: 795910 | AL15: 19261032.14 | AM15: 799.8595408 | AN15: 0 | AO15: 50 | AP15: 849.8595408 | AQ15: 19261882 | AS15: 416 | AT15: 152 | AU15: 0.04173978713 | AV15: 799.8595408 | AW15: 0 | AX15: 50 | AY15: 849.8595408 | BA15: 0 | BB15: 0 | BC15: 0 | BD15: 0 | BE15: 0 | CA15: 416 | CB15: 0 | CC15: 75171 | CD15: 0 | CE15: 3303 | CF15: 78474 | CG15: 0 | CH15: 0 | CI15: 0 | CJ15: 0 | CK15: 78474 | CM15: 416 | CR15: 0
A16: 417 | B16: BRIDGE BOSTON | C16: 335 | D16: 12 | F16: 0 | G16: 347 | I16: 9280218 | J16: 0 | K16: 398009 | L16: 9678227 | AA16: 417 | AB16: 347 | AC16: 12 | AD16: 0 | AE16: 0 | AF16: 9280218 | AG16: 0 | AH16: 0 | AI16: 9280218 | AJ16: 0 | AK16: 398009 | AL16: 9678227 | AM16: 0 | AN16: 0 | AO16: 0 | AP16: 0 | AQ16: 9678227 | AS16: 417 | AT16: 75 | AU16: 0 | AV16: 0 | AW16: 0 | AX16: 0 | AY16: 0 | BA16: 0 | BB16: 0 | BC16: 0 | BD16: 0 | BE16: 0 | CA16: 417 | CB16: 0 | CC16: 0 | CD16: 0 | CE16: 0 | CF16: 0 | CG16: 0 | CH16: 0 | CI16: 0 | CJ16: 0 | CK16: 0 | CM16: 417 | CR16: 0
A17: 418 | B17: CHRISTA MCAULIFFE | C17: 340 | F17: 0 | G17: 315 | I17: 6378289 | J17: 0 | K17: 374220 | L17: 6752509 | AA17: 418 | AB17: 315 | AC17: 0 | AD17: 0 | AE17: 0 | AF17: 6378289 | AG17: 0 | AH17: 0 | AI17: 6378289 | AJ17: 0 | AK17: 374220 | AL17: 6752509 | AM17: 0 | AN17: 0 | AO17: 0 | AP17: 0 | AQ17: 6752509 | AS17: 418 | AT17: 23 | AU17: 0 | AV17: 0 | AW17: 0 | AX17: 0 | AY17: 0 | BA17: 0 | BB17: 0 | BC17: 0 | BD17: 0 | BE17: 0 | CA17: 418 | CB17: 0 | CC17: 0 | CD17: 0 | CE17: 0 | CF17: 0 | CG17: 0 | CH17: 0 | CI17: 0 | CJ17: 0 | CK17: 0 | CM17: 418 | CR17: 0
A18: 420 | B18: BENJAMIN BANNEKER | C18: 350 | F18: 0.04173978713 | G18: 344 | I18: 11662055 | J18: 0 | K18: 408672 | L18: 12070727 | AA18: 420 | AB18: 344 | AC18: 0 | AD18: 0 | AE18: 0.04173978713 | AF18: 11662055 | AG18: 815.7623997 | AH18: 0 | AI18: 11661239.24 | AJ18: 0 | AK18: 408622 | AL18: 12069861.24 | AM18: 815.7623997 | AN18: 0 | AO18: 50 | AP18: 865.7623997 | AQ18: 12070727 | AS18: 420 | AT18: 44 | AU18: 0.04173978713 | AV18: 815.7623997 | AW18: 0 | AX18: 50 | AY18: 865.7623997 | BA18: 0 | BB18: 0 | BC18: 0 | BD18: 0 | BE18: 0 | CA18: 420 | CB18: 0 | CC18: 0 | CD18: 0 | CE18: 0 | CF18: 0 | CG18: 0 | CH18: 0 | CI18: 0 | CJ18: 0 | CK18: 0 | CM18: 420 | CR18: 0
A19: 428 | B19: BROOKE | C19: 2221 | D19: 10 | F19: 0.6648431535 | G19: 2231 | I19: 56605480 | J19: 0 | K19: 2639257 | L19: 59244737 | AA19: 428 | AB19: 2231 | AC19: 10 | AD19: 0 | AE19: 0.6648431535 | AF19: 56605480 | AG19: 11211.64074 | AH19: 0 | AI19: 56594268.36 | AJ19: 0 | AK19: 2638473 | AL19: 59232741.36 | AM19: 11211.64074 | AN19: 0 | AO19: 784 | AP19: 11995.64074 | AQ19: 59244737 | AS19: 428 | AT19: 1004 | AU19: 0.6648431535 | AV19: 11211.64074 | AW19: 0 | AX19: 784 | AY19: 11995.64074 | BA19: 0 | BB19: 0 | BC19: 0 | BD19: 0 | BE19: 0 | CA19: 428 | CB19: 0 | CC19: 0 | CD19: 0 | CE19: 0 | CF19: 0 | CG19: 0 | CH19: 0 | CI19: 0 | CJ19: 0 | CK19: 0 | CM19: 428 | CR19: 0
A20: 429 | B20: KIPP ACADEMY LYNN | C20: 1586 | D20: 43 | F20: 0 | G20: 1629 | I20: 29771593 | J20: 1613837 | K20: 1884753 | L20: 33270183 | AA20: 429 | AB20: 1629 | AC20: 43 | AD20: 0 | AE20: 0 | AF20: 29771593 | AG20: 0 | AH20: 0 | AI20: 29771593 | AJ20: 1613837 | AK20: 1884753 | AL20: 33270183 | AM20: 0 | AN20: 0 | AO20: 0 | AP20: 0 | AQ20: 33270183 | AS20: 429 | AT20: 732 | AU20: 0 | AV20: 0 | AW20: 0 | AX20: 0 | AY20: 0 | BA20: 0 | BB20: 0 | BC20: 0 | BD20: 0 | BE20: 0 | CA20: 429 | CB20: 0 | CC20: 0 | CD20: 0 | CE20: 0 | CF20: 0 | CG20: 0 | CH20: 0 | CI20: 0 | CJ20: 0 | CK20: 0 | CM20: 429 | CR20: 0
A21: 430 | B21: ADVANCED MATH AND SCIENCE ACADEMY | C21: 966 | F21: 0 | G21: 963 | I21: 16860524 | J21: 0 | K21: 1144044 | L21: 18004568 | AA21: 430 | AB21: 963 | AC21: 0 | AD21: 0 | AE21: 0 | AF21: 16860524 | AG21: 0 | AH21: 0 | AI21: 16860524 | AJ21: 0 | AK21: 1144044 | AL21: 18004568 | AM21: 0 | AN21: 0 | AO21: 0 | AP21: 0 | AQ21: 18004568 | AS21: 430 | AT21: 375 | AU21: 0 | AV21: 0 | AW21: 0 | AX21: 0 | AY21: 0 | BA21: 0 | BB21: 0 | BC21: 0 | BD21: 0 | BE21: 0 | CA21: 430 | CB21: 0 | CC21: 0 | CD21: 0 | CE21: 0 | CF21: 0 | CG21: 0 | CH21: 0 | CI21: 0 | CJ21: 0 | CK21: 0 | CM21: 430 | CR21: 0
A22: 432 | B22: CAPE COD LIGHTHOUSE | C22: 252 | F22: 0 | G22: 246 | I22: 4628162 | J22: 0 | K22: 292248 | L22: 4920410 | AA22: 432 | AB22: 246 | AC22: 0 | AD22: 0 | AE22: 0 | AF22: 4628162 | AG22: 0 | AH22: 0 | AI22: 4628162 | AJ22: 0 | AK22: 292248 | AL22: 4920410 | AM22: 0 | AN22: 0 | AO22: 0 | AP22: 0 | AQ22: 4920410 | AS22: 432 | AT22: 55 | AU22: 0 | AV22: 0 | AW22: 0 | AX22: 0 | AY22: 0 | BA22: 0 | BB22: 0 | BC22: 0 | BD22: 0 | BE22: 0 | CA22: 432 | CB22: 0 | CC22: 0 | CD22: 0 | CE22: 0 | CF22: 0 | CG22: 0 | CH22: 0 | CI22: 0 | CJ22: 0 | CK22: 0 | CM22: 432 | CR22: 0
A23: 435 | B23: INNOVATION ACADEMY | C23: 800 | F23: 0 | G23: 740 | I23: 12420246 | J23: 0 | K23: 879120 | L23: 13299366 | AA23: 435 | AB23: 740 | AC23: 0 | AD23: 0 | AE23: 0 | AF23: 12420246 | AG23: 0 | AH23: 0 | AI23: 12420246 | AJ23: 0 | AK23: 879120 | AL23: 13299366 | AM23: 0 | AN23: 0 | AO23: 0 | AP23: 0 | AQ23: 13299366 | AS23: 435 | AT23: 137 | AU23: 0 | AV23: 0 | AW23: 0 | AX23: 0 | AY23: 0 | BA23: 0 | BB23: 0 | BC23: 0 | BD23: 0 | BE23: 0 | CA23: 435 | CB23: 0 | CC23: 0 | CD23: 0 | CE23: 0 | CF23: 0 | CG23: 0 | CH23: 0 | CI23: 0 | CJ23: 0 | CK23: 0 | CM23: 435 | CR23: 0
A24: 436 | B24: COMMUNITY CS OF CAMBRIDGE | C24: 289 | F24: 0 | G24: 244 | I24: 8445123 | J24: 0 | K24: 289872 | L24: 8734995 | AA24: 436 | AB24: 244 | AC24: 0 | AD24: 0 | AE24: 0 | AF24: 8445123 | AG24: 0 | AH24: 0 | AI24: 8445123 | AJ24: 0 | AK24: 289872 | AL24: 8734995 | AM24: 0 | AN24: 0 | AO24: 0 | AP24: 0 | AQ24: 8734995 | AS24: 436 | AT24: 55 | AU24: 0 | AV24: 0 | AW24: 0 | AX24: 0 | AY24: 0 | BA24: 0 | BB24: 0 | BC24: 0 | BD24: 0 | BE24: 0 | CA24: 436 | CB24: 0 | CC24: 0 | CD24: 0 | CE24: 0 | CF24: 0 | CG24: 0 | CH24: 0 | CI24: 0 | CJ24: 0 | CK24: 0 | CM24: 436 | CR24: 0
A25: 438 | B25: CODMAN ACADEMY | C25: 345 | F25: 0.1252193614 | G25: 345 | I25: 9745077 | J25: 0 | K25: 409860 | L25: 10154937 | AA25: 438 | AB25: 345 | AC25: 0 | AD25: 0 | AE25: 0.1252193614 | AF25: 9745077 | AG25: 2726.902033 | AH25: 0 | AI25: 9742350.098 | AJ25: 0 | AK25: 409710 | AL25: 10152060.1 | AM25: 2726.902033 | AN25: 0 | AO25: 150 | AP25: 2876.902033 | AQ25: 10154937 | AS25: 438 | AT25: 85 | AU25: 0.1252193614 | AV25: 2726.902033 | AW25: 0 | AX25: 150 | AY25: 2876.902033 | BA25: 0 | BB25: 0 | BC25: 0 | BD25: 0 | BE25: 0 | CA25: 438 | CB25: 0 | CC25: 0 | CD25: 0 | CE25: 0 | CF25: 0 | CG25: 0 | CH25: 0 | CI25: 0 | CJ25: 0 | CK25: 0 | CM25: 438 | CR25: 0
A26: 439 | B26: CONSERVATORY LAB | C26: 444 | D26: 23 | F26: 0.03968408027 | G26: 467 | I26: 11720140 | J26: 0 | K26: 527243 | L26: 12247383 | AA26: 439 | AB26: 467 | AC26: 23 | AD26: 0 | AE26: 0.03968408027 | AF26: 11720140 | AG26: 607.85652 | AH26: 0 | AI26: 11719532.14 | AJ26: 0 | AK26: 527196 | AL26: 12246728.14 | AM26: 607.85652 | AN26: 0 | AO26: 47 | AP26: 654.85652 | AQ26: 12247383 | AS26: 439 | AT26: 116 | AU26: 0.03968408027 | AV26: 607.85652 | AW26: 0 | AX26: 47 | AY26: 654.85652 | BA26: 0 | BB26: 0 | BC26: 0 | BD26: 0 | BE26: 0 | CA26: 439 | CB26: 0 | CC26: 0 | CD26: 0 | CE26: 0 | CF26: 0 | CG26: 0 | CH26: 0 | CI26: 0 | CJ26: 0 | CK26: 0 | CM26: 439 | CR26: 0
A27: 440 | B27: COMMUNITY DAY | C27: 1200 | F27: 0 | G27: 1198 | I27: 23985514 | J27: 852740 | K27: 1423224 | L27: 26261478 | AA27: 440 | AB27: 1198 | AC27: 0 | AD27: 0 | AE27: 0 | AF27: 23985514 | AG27: 0 | AH27: 0 | AI27: 23985514 | AJ27: 852740 | AK27: 1423224 | AL27: 26261478 | AM27: 0 | AN27: 0 | AO27: 0 | AP27: 0 | AQ27: 26261478 | AS27: 440 | AT27: 276 | AU27: 0 | AV27: 0 | AW27: 0 | AX27: 0 | AY27: 0 | BA27: 0 | BB27: 0 | BC27: 0 | BD27: 0 | BE27: 0 | CA27: 440 | CB27: 0 | CC27: 0 | CD27: 0 | CE27: 0 | CF27: 0 | CG27: 0 | CH27: 0 | CI27: 0 | CJ27: 0 | CK27: 0 | CM27: 440 | CR27: 0
A28: 441 | B28: SPRINGFIELD INTERNATIONAL | C28: 1574 | F28: 0 | G28: 1524 | I28: 28635082 | J28: 0 | K28: 1810512 | L28: 30445594 | AA28: 441 | AB28: 1524 | AC28: 0 | AD28: 0 | AE28: 0 | AF28: 28635082 | AG28: 0 | AH28: 0 | AI28: 28635082 | AJ28: 0 | AK28: 1810512 | AL28: 30445594 | AM28: 0 | AN28: 0 | AO28: 0 | AP28: 0 | AQ28: 30445594 | AS28: 441 | AT28: 486 | AU28: 0 | AV28: 0 | AW28: 0 | AX28: 0 | AY28: 0 | BA28: 0 | BB28: 0 | BC28: 0 | BD28: 0 | BE28: 0 | CA28: 441 | CB28: 0 | CC28: 0 | CD28: 0 | CE28: 0 | CF28: 0 | CG28: 0 | CH28: 0 | CI28: 0 | CJ28: 0 | CK28: 0 | CM28: 441 | CR28: 0
A29: 444 | B29: NEIGHBORHOOD HOUSE | C29: 828 | F29: 0 | G29: 768 | I29: 20372988 | J29: 0 | K29: 912384 | L29: 21285372 | AA29: 444 | AB29: 768 | AC29: 0 | AD29: 0 | AE29: 0 | AF29: 20372988 | AG29: 0 | AH29: 0 | AI29: 20372988 | AJ29: 0 | AK29: 912384 | AL29: 21285372 | AM29: 0 | AN29: 0 | AO29: 0 | AP29: 0 | AQ29: 21285372 | AS29: 444 | AT29: 163 | AU29: 0 | AV29: 0 | AW29: 0 | AX29: 0 | AY29: 0 | BA29: 0 | BB29: 0 | BC29: 0 | BD29: 0 | BE29: 0 | CA29: 444 | CB29: 0 | CC29: 0 | CD29: 0 | CE29: 0 | CF29: 0 | CG29: 0 | CH29: 0 | CI29: 0 | CJ29: 0 | CK29: 0 | CM29: 444 | CR29: 0
A30: 445 | B30: ABBY KELLEY FOSTER | C30: 1426 | F30: 0 | G30: 1426 | I30: 26523395 | J30: 1512212 | K30: 1694088 | L30: 29729695 | AA30: 445 | AB30: 1426 | AC30: 0 | AD30: 0 | AE30: 0 | AF30: 26523395 | AG30: 0 | AH30: 0 | AI30: 26523395 | AJ30: 1512212 | AK30: 1694088 | AL30: 29729695 | AM30: 0 | AN30: 0 | AO30: 0 | AP30: 0 | AQ30: 29729695 | AS30: 445 | AT30: 650 | AU30: 0 | AV30: 0 | AW30: 0 | AX30: 0 | AY30: 0 | BA30: 0 | BB30: 0 | BC30: 0 | BD30: 0 | BE30: 0 | CA30: 445 | CB30: 0 | CC30: 0 | CD30: 0 | CE30: 0 | CF30: 0 | CG30: 0 | CH30: 0 | CI30: 0 | CJ30: 0 | CK30: 0 | CM30: 445 | CR30: 0
A31: 446 | B31: FOXBOROUGH REGIONAL | C31: 1525 | F31: 6.260968069 | G31: 1411 | I31: 26498562 | J31: 0 | K31: 1676268 | L31: 28174830 | AA31: 446 | AB31: 1411 | AC31: 0 | AD31: 0 | AE31: 6.260968069 | AF31: 26498562 | AG31: 115070.3321 | AH31: 0 | AI31: 26383491.67 | AJ31: 0 | AK31: 1668768 | AL31: 28052259.67 | AM31: 115070.3321 | AN31: 0 | AO31: 7500 | AP31: 122570.3321 | AQ31: 28174830 | AS31: 446 | AT31: 291 | AU31: 6.260968069 | AV31: 115070.3321 | AW31: 0 | AX31: 7500 | AY31: 122570.3321 | BA31: 0 | BB31: 0 | BC31: 0 | BD31: 0 | BE31: 0 | CA31: 446 | CB31: 0 | CC31: 0 | CD31: 0 | CE31: 0 | CF31: 0 | CG31: 0 | CH31: 0 | CI31: 0 | CJ31: 0 | CK31: 0 | CM31: 446 | CR31: 0
A32: 447 | B32: BENJAMIN FRANKLIN CLASSICAL | C32: 897 | D32: 2 | F32: 0 | G32: 899 | I32: 15805762 | J32: 0 | K32: 1065315 | L32: 16871077 | AA32: 447 | AB32: 899 | AC32: 2 | AD32: 0 | AE32: 0 | AF32: 15805762 | AG32: 0 | AH32: 0 | AI32: 15805762 | AJ32: 0 | AK32: 1065315 | AL32: 16871077 | AM32: 0 | AN32: 0 | AO32: 0 | AP32: 0 | AQ32: 16871077 | AS32: 447 | AT32: 305 | AU32: 0 | AV32: 0 | AW32: 0 | AX32: 0 | AY32: 0 | BA32: 0 | BB32: 0 | BC32: 0 | BD32: 0 | BE32: 0 | CA32: 447 | CB32: 0 | CC32: 0 | CD32: 0 | CE32: 0 | CF32: 0 | CG32: 0 | CH32: 0 | CI32: 0 | CJ32: 0 | CK32: 0 | CM32: 447 | CR32: 0
A33: 449 | B33: BOSTON COLLEGIATE | C33: 700 | F33: 0 | G33: 688 | I33: 16210661 | J33: 0 | K33: 817344 | L33: 17028005 | AA33: 449 | AB33: 688 | AC33: 0 | AD33: 0 | AE33: 0 | AF33: 16210661 | AG33: 0 | AH33: 0 | AI33: 16210661 | AJ33: 0 | AK33: 817344 | AL33: 17028005 | AM33: 0 | AN33: 0 | AO33: 0 | AP33: 0 | AQ33: 17028005 | AS33: 449 | AT33: 170 | AU33: 0 | AV33: 0 | AW33: 0 | AX33: 0 | AY33: 0 | BA33: 0 | BB33: 0 | BC33: 0 | BD33: 0 | BE33: 0 | CA33: 449 | CB33: 0 | CC33: 0 | CD33: 0 | CE33: 0 | CF33: 0 | CG33: 0 | CH33: 0 | CI33: 0 | CJ33: 0 | CK33: 0 | CM33: 449 | CR33: 0
A34: 450 | B34: HILLTOWN COOPERATIVE | C34: 218 | F34: 0 | G34: 218 | I34: 3829820 | J34: 0 | K34: 258984 | L34: 4088804 | AA34: 450 | AB34: 218 | AC34: 0 | AD34: 0 | AE34: 0 | AF34: 3829820 | AG34: 0 | AH34: 0 | AI34: 3829820 | AJ34: 0 | AK34: 258984 | AL34: 4088804 | AM34: 0 | AN34: 0 | AO34: 0 | AP34: 0 | AQ34: 4088804 | AS34: 450 | AT34: 61 | AU34: 0 | AV34: 0 | AW34: 0 | AX34: 0 | AY34: 0 | BA34: 0 | BB34: 0 | BC34: 0 | BD34: 0 | BE34: 0 | CA34: 450 | CB34: 0 | CC34: 0 | CD34: 0 | CE34: 0 | CF34: 0 | CG34: 0 | CH34: 0 | CI34: 0 | CJ34: 0 | CK34: 0 | CM34: 450 | CR34: 0
A35: 453 | B35: HOLYOKE COMMUNITY | C35: 702 | F35: 0 | G35: 687 | I35: 14173558 | J35: 575995 | K35: 816156 | L35: 15565709 | AA35: 453 | AB35: 687 | AC35: 0 | AD35: 0 | AE35: 0 | AF35: 14173558 | AG35: 0 | AH35: 0 | AI35: 14173558 | AJ35: 575995 | AK35: 816156 | AL35: 15565709 | AM35: 0 | AN35: 0 | AO35: 0 | AP35: 0 | AQ35: 15565709 | AS35: 453 | AT35: 183 | AU35: 0 | AV35: 0 | AW35: 0 | AX35: 0 | AY35: 0 | BA35: 0 | BB35: 0 | BC35: 0 | BD35: 0 | BE35: 0 | CA35: 453 | CB35: 0 | CC35: 0 | CD35: 0 | CE35: 0 | CF35: 0 | CG35: 0 | CH35: 0 | CI35: 0 | CJ35: 0 | CK35: 0 | CM35: 453 | CR35: 0
A36: 454 | B36: LAWRENCE FAMILY DEVELOPMENT | C36: 940 | F36: 0 | G36: 920 | I36: 18846137 | J36: 423468 | K36: 1092960 | L36: 20362565 | AA36: 454 | AB36: 920 | AC36: 0 | AD36: 0 | AE36: 0 | AF36: 18846137 | AG36: 0 | AH36: 0 | AI36: 18846137 | AJ36: 423468 | AK36: 1092960 | AL36: 20362565 | AM36: 0 | AN36: 0 | AO36: 0 | AP36: 0 | AQ36: 20362565 | AS36: 454 | AT36: 52 | AU36: 0 | AV36: 0 | AW36: 0 | AX36: 0 | AY36: 0 | BA36: 0 | BB36: 0 | BC36: 0 | BD36: 0 | BE36: 0 | CA36: 454 | CB36: 0 | CC36: 0 | CD36: 0 | CE36: 0 | CF36: 0 | CG36: 0 | CH36: 0 | CI36: 0 | CJ36: 0 | CK36: 0 | CM36: 454 | CR36: 0
A37: 455 | B37: HILL VIEW MONTESSORI | C37: 306 | F37: 0 | G37: 306 | I37: 4941763 | J37: 0 | K37: 363528 | L37: 5305291 | AA37: 455 | AB37: 306 | AC37: 0 | AD37: 0 | AE37: 0 | AF37: 4941763 | AG37: 0 | AH37: 0 | AI37: 4941763 | AJ37: 0 | AK37: 363528 | AL37: 5305291 | AM37: 0 | AN37: 0 | AO37: 0 | AP37: 0 | AQ37: 5305291 | AS37: 455 | AT37: 96 | AU37: 0 | AV37: 0 | AW37: 0 | AX37: 0 | AY37: 0 | BA37: 0 | BB37: 0 | BC37: 0 | BD37: 0 | BE37: 0 | CA37: 455 | CB37: 0 | CC37: 0 | CD37: 0 | CE37: 0 | CF37: 0 | CG37: 0 | CH37: 0 | CI37: 0 | CJ37: 0 | CK37: 0 | CM37: 455 | CR37: 0
A38: 456 | B38: LOWELL COMMUNITY | C38: 815 | F38: 0 | G38: 815 | I38: 15631971 | J38: 0 | K38: 968220 | L38: 16600191 | AA38: 456 | AB38: 815 | AC38: 0 | AD38: 0 | AE38: 0 | AF38: 15631971 | AG38: 0 | AH38: 0 | AI38: 15631971 | AJ38: 0 | AK38: 968220 | AL38: 16600191 | AM38: 0 | AN38: 0 | AO38: 0 | AP38: 0 | AQ38: 16600191 | AS38: 456 | AT38: 300 | AU38: 0 | AV38: 0 | AW38: 0 | AX38: 0 | AY38: 0 | BA38: 0 | BB38: 0 | BC38: 0 | BD38: 0 | BE38: 0 | CA38: 456 | CB38: 0 | CC38: 0 | CD38: 0 | CE38: 0 | CF38: 0 | CG38: 0 | CH38: 0 | CI38: 0 | CJ38: 0 | CK38: 0 | CM38: 456 | CR38: 0
A39: 458 | B39: LOWELL MIDDLESEX ACADEMY | C39: 140 | F39: 0 | G39: 124 | I39: 2619816 | J39: 0 | K39: 147312 | L39: 2767128 | AA39: 458 | AB39: 124 | AC39: 0 | AD39: 0 | AE39: 0 | AF39: 2619816 | AG39: 0 | AH39: 0 | AI39: 2619816 | AJ39: 0 | AK39: 147312 | AL39: 2767128 | AM39: 0 | AN39: 0 | AO39: 0 | AP39: 0 | AQ39: 2767128 | AS39: 458 | AT39: 0 | AU39: 0 | AV39: 0 | AW39: 0 | AX39: 0 | AY39: 0 | BA39: 0 | BB39: 0 | BC39: 0 | BD39: 0 | BE39: 0 | CA39: 458 | CB39: 0 | CC39: 0 | CD39: 0 | CE39: 0 | CF39: 0 | CG39: 0 | CH39: 0 | CI39: 0 | CJ39: 0 | CK39: 0 | CM39: 458 | CR39: 0
A40: 463 | B40: KIPP ACADEMY BOSTON | C40: 588 | D40: 39 | F40: 0.07828706485 | G40: 627 | I40: 16196908 | J40: 0 | K40: 698480 | L40: 16895388 | AA40: 463 | AB40: 627 | AC40: 39 | AD40: 0 | AE40: 0.07828706485 | AF40: 16196908 | AG40: 1490.527798 | AH40: 0 | AI40: 16195417.47 | AJ40: 0 | AK40: 698386 | AL40: 16893803.47 | AM40: 1490.527798 | AN40: 0 | AO40: 94 | AP40: 1584.527798 | AQ40: 16895388 | AS40: 463 | AT40: 180 | AU40: 0.07828706485 | AV40: 1490.527798 | AW40: 0 | AX40: 94 | AY40: 1584.527798 | BA40: 0 | BB40: 0 | BC40: 0 | BD40: 0 | BE40: 0 | CA40: 463 | CB40: 0 | CC40: 0 | CD40: 0 | CE40: 0 | CF40: 0 | CG40: 0 | CH40: 0 | CI40: 0 | CJ40: 0 | CK40: 0 | CM40: 463 | CR40: 0
A41: 464 | B41: MARBLEHEAD COMMUNITY | C41: 230 | F41: 0 | G41: 226 | I41: 4335797 | J41: 0 | K41: 268488 | L41: 4604285 | AA41: 464 | AB41: 226 | AC41: 0 | AD41: 0 | AE41: 0 | AF41: 4335797 | AG41: 0 | AH41: 0 | AI41: 4335797 | AJ41: 0 | AK41: 268488 | AL41: 4604285 | AM41: 0 | AN41: 0 | AO41: 0 | AP41: 0 | AQ41: 4604285 | AS41: 464 | AT41: 43 | AU41: 0 | AV41: 0 | AW41: 0 | AX41: 0 | AY41: 0 | BA41: 0 | BB41: 0 | BC41: 0 | BD41: 0 | BE41: 0 | CA41: 464 | CB41: 0 | CC41: 0 | CD41: 0 | CE41: 0 | CF41: 0 | CG41: 0 | CH41: 0 | CI41: 0 | CJ41: 0 | CK41: 0 | CM41: 464 | CR41: 0
A42: 466 | B42: MARTHA'S VINEYARD | C42: 180 | F42: 0.7233813059 | G42: 164 | I42: 5701728 | J42: 0 | K42: 194832 | L42: 5896560 | AA42: 466 | AB42: 164 | AC42: 0 | AD42: 0 | AE42: 0.7233813059 | AF42: 5701728 | AG42: 32988.35769 | AH42: 0 | AI42: 5668739.642 | AJ42: 0 | AK42: 193974 | AL42: 5862713.642 | AM42: 32988.35769 | AN42: 0 | AO42: 858 | AP42: 33846.35769 | AQ42: 5896560 | AS42: 466 | AT42: 36 | AU42: 0.7233813059 | AV42: 32988.35769 | AW42: 0 | AX42: 858 | AY42: 33846.35769 | BA42: 0 | BB42: 0 | BC42: 0 | BD42: 0 | BE42: 0 | CA42: 466 | CB42: 0 | CC42: 0 | CD42: 0 | CE42: 0 | CF42: 0 | CG42: 0 | CH42: 0 | CI42: 0 | CJ42: 0 | CK42: 0 | CM42: 466 | CR42: 0
A43: 469 | B43: MATCH | C43: 1200 | F43: 0.1252193614 | G43: 1192 | I43: 32752977 | J43: 0 | K43: 1416096 | L43: 34169073 | AA43: 469 | AB43: 1192 | AC43: 0 | AD43: 0 | AE43: 0.1252193614 | AF43: 32752977 | AG43: 1845.858606 | AH43: 0 | AI43: 32751131.14 | AJ43: 0 | AK43: 1415946 | AL43: 34167077.14 | AM43: 1845.858606 | AN43: 0 | AO43: 150 | AP43: 1995.858606 | AQ43: 34169073 | AS43: 469 | AT43: 363 | AU43: 0.1252193614 | AV43: 1845.858606 | AW43: 0 | AX43: 150 | AY43: 1995.858606 | BA43: 0 | BB43: 0 | BC43: 0 | BD43: 0 | BE43: 0 | CA43: 469 | CB43: 0 | CC43: 0 | CD43: 0 | CE43: 0 | CF43: 0 | CG43: 0 | CH43: 0 | CI43: 0 | CJ43: 0 | CK43: 0 | CM43: 469 | CR43: 0
A44: 470 | B44: MYSTIC VALLEY REGIONAL | C44: 1793 | F44: 0 | G44: 1773 | I44: 30044504 | J44: 51840 | K44: 2106324 | L44: 32202668 | AA44: 470 | AB44: 1773 | AC44: 0 | AD44: 0 | AE44: 0 | AF44: 30044504 | AG44: 0 | AH44: 0 | AI44: 30044504 | AJ44: 51840 | AK44: 2106324 | AL44: 32202668 | AM44: 0 | AN44: 0 | AO44: 0 | AP44: 0 | AQ44: 32202668 | AS44: 470 | AT44: 754 | AU44: 0 | AV44: 0 | AW44: 0 | AX44: 0 | AY44: 0 | BA44: 0 | BB44: 0 | BC44: 0 | BD44: 0 | BE44: 0 | CA44: 470 | CB44: 0 | CC44: 0 | CD44: 0 | CE44: 0 | CF44: 0 | CG44: 0 | CH44: 0 | CI44: 0 | CJ44: 0 | CK44: 0 | CM44: 470 | CR44: 0
A45: 474 | B45: SIZER SCHOOL, A NORTH CENTRAL CHARTER ESSENTIAL SCHOOL | C45: 348 | F45: 0 | G45: 270 | I45: 4866993 | J45: 0 | K45: 320760 | L45: 5187753 | AA45: 474 | AB45: 270 | AC45: 0 | AD45: 0 | AE45: 0 | AF45: 4866993 | AG45: 0 | AH45: 0 | AI45: 4866993 | AJ45: 0 | AK45: 320760 | AL45: 5187753 | AM45: 0 | AN45: 0 | AO45: 0 | AP45: 0 | AQ45: 5187753 | AS45: 474 | AT45: 19 | AU45: 0 | AV45: 0 | AW45: 0 | AX45: 0 | AY45: 0 | BA45: 0 | BB45: 0 | BC45: 0 | BD45: 0 | BE45: 0 | CA45: 474 | CB45: 0 | CC45: 0 | CD45: 0 | CE45: 0 | CF45: 0 | CG45: 0 | CH45: 0 | CI45: 0 | CJ45: 0 | CK45: 0 | CM45: 474 | CR45: 0
A46: 478 | B46: FRANCIS W. PARKER CHARTER ESSENTIAL | C46: 400 | F46: 0 | G46: 395 | I46: 6912818 | J46: 0 | K46: 469260 | L46: 7382078 | AA46: 478 | AB46: 395 | AC46: 0 | AD46: 0 | AE46: 0 | AF46: 6912818 | AG46: 0 | AH46: 0 | AI46: 6912818 | AJ46: 0 | AK46: 469260 | AL46: 7382078 | AM46: 0 | AN46: 0 | AO46: 0 | AP46: 0 | AQ46: 7382078 | AS46: 478 | AT46: 96 | AU46: 0 | AV46: 0 | AW46: 0 | AX46: 0 | AY46: 0 | BA46: 0 | BB46: 0 | BC46: 0 | BD46: 0 | BE46: 0 | CA46: 478 | CB46: 0 | CC46: 0 | CD46: 0 | CE46: 0 | CF46: 0 | CG46: 0 | CH46: 0 | CI46: 0 | CJ46: 0 | CK46: 0 | CM46: 478 | CR46: 0
A47: 479 | B47: PIONEER VALLEY PERFORMING ARTS | C47: 400 | F47: 0 | G47: 395 | I47: 7679977 | J47: 52675 | K47: 469260 | L47: 8201912 | AA47: 479 | AB47: 395 | AC47: 0 | AD47: 0 | AE47: 0 | AF47: 7679977 | AG47: 0 | AH47: 0 | AI47: 7679977 | AJ47: 52675 | AK47: 469260 | AL47: 8201912 | AM47: 0 | AN47: 0 | AO47: 0 | AP47: 0 | AQ47: 8201912 | AS47: 479 | AT47: 51 | AU47: 0 | AV47: 0 | AW47: 0 | AX47: 0 | AY47: 0 | BA47: 0 | BB47: 0 | BC47: 0 | BD47: 0 | BE47: 0 | CA47: 479 | CB47: 0 | CC47: 0 | CD47: 0 | CE47: 0 | CF47: 0 | CG47: 0 | CH47: 0 | CI47: 0 | CJ47: 0 | CK47: 0 | CM47: 479 | CR47: 0
A48: 481 | B48: BOSTON RENAISSANCE | C48: 944 | D48: 7 | F48: 0.08286510841 | G48: 951 | I48: 25513358 | J48: 0 | K48: 1121229 | L48: 26634587 | AA48: 481 | AB48: 951 | AC48: 7 | AD48: 0 | AE48: 0.08286510841 | AF48: 25513358 | AG48: 1389.434034 | AH48: 0 | AI48: 25511968.57 | AJ48: 0 | AK48: 1121131 | AL48: 26633099.57 | AM48: 1389.434034 | AN48: 0 | AO48: 98 | AP48: 1487.434034 | AQ48: 26634587 | AS48: 481 | AT48: 204 | AU48: 0.08286510841 | AV48: 1389.434034 | AW48: 0 | AX48: 98 | AY48: 1487.434034 | BA48: 0 | BB48: 0 | BC48: 0 | BD48: 0 | BE48: 0 | CA48: 481 | CB48: 0 | CC48: 0 | CD48: 0 | CE48: 0 | CF48: 0 | CG48: 0 | CH48: 0 | CI48: 0 | CJ48: 0 | CK48: 0 | CM48: 481 | CR48: 0
A49: 482 | B49: RIVER VALLEY | C49: 288 | F49: 0 | G49: 288 | I49: 5476819 | J49: 0 | K49: 342144 | L49: 5818963 | AA49: 482 | AB49: 288 | AC49: 0 | AD49: 0 | AE49: 0 | AF49: 5476819 | AG49: 0 | AH49: 0 | AI49: 5476819 | AJ49: 0 | AK49: 342144 | AL49: 5818963 | AM49: 0 | AN49: 0 | AO49: 0 | AP49: 0 | AQ49: 5818963 | AS49: 482 | AT49: 102 | AU49: 0 | AV49: 0 | AW49: 0 | AX49: 0 | AY49: 0 | BA49: 0 | BB49: 0 | BC49: 0 | BD49: 0 | BE49: 0 | CA49: 482 | CB49: 0 | CC49: 0 | CD49: 0 | CE49: 0 | CF49: 0 | CG49: 0 | CH49: 0 | CI49: 0 | CJ49: 0 | CK49: 0 | CM49: 482 | CR49: 0
A50: 483 | B50: RISING TIDE | C50: 670 | F50: 0 | G50: 610 | I50: 11866349 | J50: 0 | K50: 724680 | L50: 12591029 | AA50: 483 | AB50: 610 | AC50: 0 | AD50: 0 | AE50: 0 | AF50: 11866349 | AG50: 0 | AH50: 0 | AI50: 11866349 | AJ50: 0 | AK50: 724680 | AL50: 12591029 | AM50: 0 | AN50: 0 | AO50: 0 | AP50: 0 | AQ50: 12591029 | AS50: 483 | AT50: 127 | AU50: 0 | AV50: 0 | AW50: 0 | AX50: 0 | AY50: 0 | BA50: 0 | BB50: 0 | BC50: 0 | BD50: 0 | BE50: 0 | CA50: 483 | CB50: 0 | CC50: 0 | CD50: 0 | CE50: 0 | CF50: 0 | CG50: 0 | CH50: 0 | CI50: 0 | CJ50: 0 | CK50: 0 | CM50: 483 | CR50: 0
A51: 484 | B51: ROXBURY PREPARATORY | C51: 1250 | F51: 0 | G51: 1225 | I51: 35536025 | J51: 0 | K51: 1455300 | L51: 36991325 | AA51: 484 | AB51: 1225 | AC51: 0 | AD51: 0 | AE51: 0 | AF51: 35536025 | AG51: 0 | AH51: 0 | AI51: 35536025 | AJ51: 0 | AK51: 1455300 | AL51: 36991325 | AM51: 0 | AN51: 0 | AO51: 0 | AP51: 0 | AQ51: 36991325 | AS51: 484 | AT51: 110 | AU51: 0 | AV51: 0 | AW51: 0 | AX51: 0 | AY51: 0 | BA51: 0 | BB51: 0 | BC51: 0 | BD51: 0 | BE51: 0 | CA51: 484 | CB51: 0 | CC51: 0 | CD51: 0 | CE51: 0 | CF51: 0 | CG51: 0 | CH51: 0 | CI51: 0 | CJ51: 0 | CK51: 0 | CM51: 484 | CR51: 0
A52: 485 | B52: SALEM ACADEMY | C52: 480 | F52: 0 | G52: 477 | I52: 9817465 | J52: 0 | K52: 566676 | L52: 10384141 | AA52: 485 | AB52: 477 | AC52: 0 | AD52: 0 | AE52: 0 | AF52: 9817465 | AG52: 0 | AH52: 0 | AI52: 9817465 | AJ52: 0 | AK52: 566676 | AL52: 10384141 | AM52: 0 | AN52: 0 | AO52: 0 | AP52: 0 | AQ52: 10384141 | AS52: 485 | AT52: 162 | AU52: 0 | AV52: 0 | AW52: 0 | AX52: 0 | AY52: 0 | BA52: 0 | BB52: 0 | BC52: 0 | BD52: 0 | BE52: 0 | CA52: 485 | CB52: 0 | CC52: 0 | CD52: 0 | CE52: 0 | CF52: 0 | CG52: 0 | CH52: 0 | CI52: 0 | CJ52: 0 | CK52: 0 | CM52: 485 | CR52: 0
A53: 486 | B53: LEARNING FIRST | C53: 666 | F53: 0 | G53: 666 | I53: 13256453 | J53: 699629 | K53: 791208 | L53: 14747290 | AA53: 486 | AB53: 666 | AC53: 0 | AD53: 0 | AE53: 0 | AF53: 13256453 | AG53: 0 | AH53: 0 | AI53: 13256453 | AJ53: 699629 | AK53: 791208 | AL53: 14747290 | AM53: 0 | AN53: 0 | AO53: 0 | AP53: 0 | AQ53: 14747290 | AS53: 486 | AT53: 285 | AU53: 0 | AV53: 0 | AW53: 0 | AX53: 0 | AY53: 0 | BA53: 0 | BB53: 0 | BC53: 0 | BD53: 0 | BE53: 0 | CA53: 486 | CB53: 0 | CC53: 0 | CD53: 0 | CE53: 0 | CF53: 0 | CG53: 0 | CH53: 0 | CI53: 0 | CJ53: 0 | CK53: 0 | CM53: 486 | CR53: 0
A54: 487 | B54: PROSPECT HILL ACADEMY | C54: 945 | F54: 0.04173978713 | G54: 888 | I54: 22282661 | J54: 0 | K54: 1054944 | L54: 23337605 | AA54: 487 | AB54: 888 | AC54: 0 | AD54: 0 | AE54: 0.04173978713 | AF54: 22282661 | AG54: 666.9183187 | AH54: 0 | AI54: 22281994.08 | AJ54: 0 | AK54: 1054894 | AL54: 23336888.08 | AM54: 666.9183187 | AN54: 0 | AO54: 50 | AP54: 716.9183187 | AQ54: 23337605 | AS54: 487 | AT54: 264 | AU54: 0.04173978713 | AV54: 666.9183187 | AW54: 0 | AX54: 50 | AY54: 716.9183187 | BA54: 0 | BB54: 0 | BC54: 0 | BD54: 0 | BE54: 0 | CA54: 487 | CB54: 0 | CC54: 0 | CD54: 0 | CE54: 0 | CF54: 0 | CG54: 0 | CH54: 0 | CI54: 0 | CJ54: 0 | CK54: 0 | CM54: 487 | CR54: 0
A55: 488 | B55: SOUTH SHORE | C55: 1165 | F55: 4.132238926 | G55: 1136 | I55: 21217995 | J55: 4060 | K55: 1349568 | L55: 22571623 | AA55: 488 | AB55: 1136 | AC55: 0 | AD55: 0 | AE55: 4.132238926 | AF55: 21217995 | AG55: 78611.71332 | AH55: 0 | AI55: 21139383.29 | AJ55: 4060 | AK55: 1344618 | AL55: 22488061.29 | AM55: 78611.71332 | AN55: 0 | AO55: 4950 | AP55: 83561.71332 | AQ55: 22571623 | AS55: 488 | AT55: 445 | AU55: 4.132238926 | AV55: 78611.71332 | AW55: 0 | AX55: 4950 | AY55: 83561.71332 | BA55: 0 | BB55: 0 | BC55: 0 | BD55: 0 | BE55: 0 | CA55: 488 | CB55: 0 | CC55: 0 | CD55: 0 | CE55: 0 | CF55: 0 | CG55: 0 | CH55: 0 | CI55: 0 | CJ55: 0 | CK55: 0 | CM55: 488 | CR55: 0
A56: 489 | B56: STURGIS | C56: 850 | F56: 0 | G56: 833 | I56: 18306009 | J56: 0 | K56: 989604 | L56: 19295613 | AA56: 489 | AB56: 833 | AC56: 0 | AD56: 0 | AE56: 0 | AF56: 18306009 | AG56: 0 | AH56: 0 | AI56: 18306009 | AJ56: 0 | AK56: 989604 | AL56: 19295613 | AM56: 0 | AN56: 0 | AO56: 0 | AP56: 0 | AQ56: 19295613 | AS56: 489 | AT56: 183 | AU56: 0 | AV56: 0 | AW56: 0 | AX56: 0 | AY56: 0 | BA56: 0 | BB56: 0 | BC56: 0 | BD56: 0 | BE56: 0 | CA56: 489 | CB56: 0 | CC56: 0 | CD56: 0 | CE56: 0 | CF56: 0 | CG56: 0 | CH56: 0 | CI56: 0 | CJ56: 0 | CK56: 0 | CM56: 489 | CR56: 0
A57: 491 | B57: ATLANTIS | C57: 1280 | F57: 0 | G57: 1234 | I57: 23271562 | J57: 0 | K57: 1465992 | L57: 24737554 | AA57: 491 | AB57: 1234 | AC57: 0 | AD57: 0 | AE57: 0 | AF57: 23271562 | AG57: 0 | AH57: 0 | AI57: 23271562 | AJ57: 0 | AK57: 1465992 | AL57: 24737554 | AM57: 0 | AN57: 0 | AO57: 0 | AP57: 0 | AQ57: 24737554 | AS57: 491 | AT57: 520 | AU57: 0 | AV57: 0 | AW57: 0 | AX57: 0 | AY57: 0 | BA57: 0 | BB57: 0 | BC57: 0 | BD57: 0 | BE57: 0 | CA57: 491 | CB57: 0 | CC57: 0 | CD57: 0 | CE57: 0 | CF57: 0 | CG57: 0 | CH57: 0 | CI57: 0 | CJ57: 0 | CK57: 0 | CM57: 491 | CR57: 0
A58: 492 | B58: MARTIN LUTHER KING JR CS OF EXCELLENCE | C58: 360 | F58: 0 | G58: 354 | I58: 7179541 | J58: 0 | K58: 420552 | L58: 7600093 | AA58: 492 | AB58: 354 | AC58: 0 | AD58: 0 | AE58: 0 | AF58: 7179541 | AG58: 0 | AH58: 0 | AI58: 7179541 | AJ58: 0 | AK58: 420552 | AL58: 7600093 | AM58: 0 | AN58: 0 | AO58: 0 | AP58: 0 | AQ58: 7600093 | AS58: 492 | AT58: 106 | AU58: 0 | AV58: 0 | AW58: 0 | AX58: 0 | AY58: 0 | BA58: 0 | BB58: 0 | BC58: 0 | BD58: 0 | BE58: 0 | CA58: 492 | CB58: 0 | CC58: 0 | CD58: 0 | CE58: 0 | CF58: 0 | CG58: 0 | CH58: 0 | CI58: 0 | CJ58: 0 | CK58: 0 | CM58: 492 | CR58: 0
A59: 493 | B59: PHOENIX ACADEMY CHELSEA | C59: 215 | F59: 0 | G59: 194 | I59: 4903981 | J59: 0 | K59: 230472 | L59: 5134453 | AA59: 493 | AB59: 194 | AC59: 0 | AD59: 0 | AE59: 0 | AF59: 4903981 | AG59: 0 | AH59: 0 | AI59: 4903981 | AJ59: 0 | AK59: 230472 | AL59: 5134453 | AM59: 0 | AN59: 0 | AO59: 0 | AP59: 0 | AQ59: 5134453 | AS59: 493 | AT59: 0 | AU59: 0 | AV59: 0 | AW59: 0 | AX59: 0 | AY59: 0 | BA59: 0 | BB59: 0 | BC59: 0 | BD59: 0 | BE59: 0 | CA59: 493 | CB59: 0 | CC59: 0 | CD59: 0 | CE59: 0 | CF59: 0 | CG59: 0 | CH59: 0 | CI59: 0 | CJ59: 0 | CK59: 0 | CM59: 493 | CR59: 0
A60: 494 | B60: PIONEER CS OF SCIENCE | C60: 780 | D60: 6 | F60: 0 | G60: 786 | I60: 14806139 | J60: 0 | K60: 926694 | L60: 15732833 | AA60: 494 | AB60: 786 | AC60: 6 | AD60: 0 | AE60: 0 | AF60: 14806139 | AG60: 0 | AH60: 0 | AI60: 14806139 | AJ60: 0 | AK60: 926694 | AL60: 15732833 | AM60: 0 | AN60: 0 | AO60: 0 | AP60: 0 | AQ60: 15732833 | AS60: 494 | AT60: 380 | AU60: 0 | AV60: 0 | AW60: 0 | AX60: 0 | AY60: 0 | BA60: 0 | BB60: 0 | BC60: 0 | BD60: 0 | BE60: 0 | CA60: 494 | CB60: 0 | CC60: 0 | CD60: 0 | CE60: 0 | CF60: 0 | CG60: 0 | CH60: 0 | CI60: 0 | CJ60: 0 | CK60: 0 | CM60: 494 | CR60: 0
A61: 496 | B61: GLOBAL LEARNING | C61: 500 | D61: 1 | F61: 0 | G61: 501 | I61: 9902675 | J61: 267598 | K61: 594186 | L61: 10764459 | AA61: 496 | AB61: 501 | AC61: 1 | AD61: 0 | AE61: 0 | AF61: 9902675 | AG61: 0 | AH61: 0 | AI61: 9902675 | AJ61: 267598 | AK61: 594186 | AL61: 10764459 | AM61: 0 | AN61: 0 | AO61: 0 | AP61: 0 | AQ61: 10764459 | AS61: 496 | AT61: 95 | AU61: 0 | AV61: 0 | AW61: 0 | AX61: 0 | AY61: 0 | BA61: 0 | BB61: 0 | BC61: 0 | BD61: 0 | BE61: 0 | CA61: 496 | CB61: 0 | CC61: 0 | CD61: 0 | CE61: 0 | CF61: 0 | CG61: 0 | CH61: 0 | CI61: 0 | CJ61: 0 | CK61: 0 | CM61: 496 | CR61: 0
A62: 497 | B62: PIONEER VALLEY CHINESE IMMERSION | C62: 612 | F62: 0 | G62: 592 | I62: 11091733 | J62: 0 | K62: 703296 | L62: 11795029 | AA62: 497 | AB62: 592 | AC62: 0 | AD62: 0 | AE62: 0 | AF62: 11091733 | AG62: 0 | AH62: 0 | AI62: 11091733 | AJ62: 0 | AK62: 703296 | AL62: 11795029 | AM62: 0 | AN62: 0 | AO62: 0 | AP62: 0 | AQ62: 11795029 | AS62: 497 | AT62: 136 | AU62: 0 | AV62: 0 | AW62: 0 | AX62: 0 | AY62: 0 | BA62: 0 | BB62: 0 | BC62: 0 | BD62: 0 | BE62: 0 | CA62: 497 | CB62: 0 | CC62: 0 | CD62: 0 | CE62: 0 | CF62: 0 | CG62: 0 | CH62: 0 | CI62: 0 | CJ62: 0 | CK62: 0 | CM62: 497 | CR62: 0
A63: 498 | B63: VERITAS PREPARATORY | C63: 766 | D63: 3 | F63: 0 | G63: 769 | I63: 15865714 | J63: 0 | K63: 909727 | L63: 16775441 | AA63: 498 | AB63: 769 | AC63: 3 | AD63: 0 | AE63: 0 | AF63: 15865714 | AG63: 0 | AH63: 0 | AI63: 15865714 | AJ63: 0 | AK63: 909727 | AL63: 16775441 | AM63: 0 | AN63: 0 | AO63: 0 | AP63: 0 | AQ63: 16775441 | AS63: 498 | AT63: 88 | AU63: 0 | AV63: 0 | AW63: 0 | AX63: 0 | AY63: 0 | BA63: 0 | BB63: 0 | BC63: 0 | BD63: 0 | BE63: 0 | CA63: 498 | CB63: 0 | CC63: 0 | CD63: 0 | CE63: 0 | CF63: 0 | CG63: 0 | CH63: 0 | CI63: 0 | CJ63: 0 | CK63: 0 | CM63: 498 | CR63: 0
A64: 499 | B64: HAMPDEN CS OF SCIENCE EAST | C64: 985 | F64: 0 | G64: 958 | I64: 19046385 | J64: 0 | K64: 1138104 | L64: 20184489 | AA64: 499 | AB64: 958 | AC64: 0 | AD64: 0 | AE64: 0 | AF64: 19046385 | AG64: 0 | AH64: 0 | AI64: 19046385 | AJ64: 0 | AK64: 1138104 | AL64: 20184489 | AM64: 0 | AN64: 0 | AO64: 0 | AP64: 0 | AQ64: 20184489 | AS64: 499 | AT64: 207 | AU64: 0 | AV64: 0 | AW64: 0 | AX64: 0 | AY64: 0 | BA64: 0 | BB64: 0 | BC64: 0 | BD64: 0 | BE64: 0 | CA64: 499 | CB64: 0 | CC64: 0 | CD64: 0 | CE64: 0 | CF64: 0 | CG64: 0 | CH64: 0 | CI64: 0 | CJ64: 0 | CK64: 0 | CM64: 499 | CR64: 0
A65: 3502 | B65: BAYSTATE ACADEMY | C65: 419 | F65: 0 | G65: 344 | I65: 7155499 | J65: 0 | K65: 408672 | L65: 7564171 | AA65: 3502 | AB65: 344 | AC65: 0 | AD65: 0 | AE65: 0 | AF65: 7155499 | AG65: 0 | AH65: 0 | AI65: 7155499 | AJ65: 0 | AK65: 408672 | AL65: 7564171 | AM65: 0 | AN65: 0 | AO65: 0 | AP65: 0 | AQ65: 7564171 | AS65: 3502 | AT65: 49 | AU65: 0 | AV65: 0 | AW65: 0 | AX65: 0 | AY65: 0 | BA65: 0 | BB65: 0 | BC65: 0 | BD65: 0 | BE65: 0 | CA65: 3502 | CB65: 0 | CC65: 0 | CD65: 0 | CE65: 0 | CF65: 0 | CG65: 0 | CH65: 0 | CI65: 0 | CJ65: 0 | CK65: 0 | CM65: 3502 | CR65: 0
A66: 3503 | B66: COLLEGIATE CS OF LOWELL | C66: 1200 | D66: 5 | F66: 0 | G66: 1205 | I66: 23113755 | J66: 0 | K66: 1425515 | L66: 24539270 | AA66: 3503 | AB66: 1205 | AC66: 5 | AD66: 0 | AE66: 0 | AF66: 23113755 | AG66: 0 | AH66: 0 | AI66: 23113755 | AJ66: 0 | AK66: 1425515 | AL66: 24539270 | AM66: 0 | AN66: 0 | AO66: 0 | AP66: 0 | AQ66: 24539270 | AS66: 3503 | AT66: 120 | AU66: 0 | AV66: 0 | AW66: 0 | AX66: 0 | AY66: 0 | BA66: 0 | BB66: 0 | BC66: 0 | BD66: 0 | BE66: 0 | CA66: 3503 | CB66: 0 | CC66: 0 | CD66: 0 | CE66: 0 | CF66: 0 | CG66: 0 | CH66: 0 | CI66: 0 | CJ66: 0 | CK66: 0 | CM66: 3503 | CR66: 0
A67: 3506 | B67: PIONEER CS OF SCIENCE II | C67: 701 | F67: 0 | G67: 684 | I67: 12104522 | J67: 0 | K67: 812592 | L67: 12917114 | AA67: 3506 | AB67: 684 | AC67: 0 | AD67: 0 | AE67: 0 | AF67: 12104522 | AG67: 0 | AH67: 0 | AI67: 12104522 | AJ67: 0 | AK67: 812592 | AL67: 12917114 | AM67: 0 | AN67: 0 | AO67: 0 | AP67: 0 | AQ67: 12917114 | AS67: 3506 | AT67: 231 | AU67: 0 | AV67: 0 | AW67: 0 | AX67: 0 | AY67: 0 | BA67: 0 | BB67: 0 | BC67: 0 | BD67: 0 | BE67: 0 | CA67: 3506 | CB67: 0 | CC67: 0 | CD67: 0 | CE67: 0 | CF67: 0 | CG67: 0 | CH67: 0 | CI67: 0 | CJ67: 0 | CK67: 0 | CM67: 3506 | CR67: 0
A68: 3508 | B68: PHOENIX ACADEMY SPRINGFIELD | C68: 185 | F68: 0 | G68: 175 | I68: 3956991 | J68: 0 | K68: 207900 | L68: 4164891 | AA68: 3508 | AB68: 175 | AC68: 0 | AD68: 0 | AE68: 0 | AF68: 3956991 | AG68: 0 | AH68: 0 | AI68: 3956991 | AJ68: 0 | AK68: 207900 | AL68: 4164891 | AM68: 0 | AN68: 0 | AO68: 0 | AP68: 0 | AQ68: 4164891 | AS68: 3508 | AT68: 0 | AU68: 0 | AV68: 0 | AW68: 0 | AX68: 0 | AY68: 0 | BA68: 0 | BB68: 0 | BC68: 0 | BD68: 0 | BE68: 0 | CA68: 3508 | CB68: 0 | CC68: 0 | CD68: 0 | CE68: 0 | CF68: 0 | CG68: 0 | CH68: 0 | CI68: 0 | CJ68: 0 | CK68: 0 | CM68: 3508 | CR68: 0
A69: 3509 | B69: ARGOSY COLLEGIATE | C69: 630 | F69: 0 | G69: 604 | I69: 12218895 | J69: 0 | K69: 717552 | L69: 12936447 | AA69: 3509 | AB69: 604 | AC69: 0 | AD69: 0 | AE69: 0 | AF69: 12218895 | AG69: 0 | AH69: 0 | AI69: 12218895 | AJ69: 0 | AK69: 717552 | AL69: 12936447 | AM69: 0 | AN69: 0 | AO69: 0 | AP69: 0 | AQ69: 12936447 | AS69: 3509 | AT69: 103 | AU69: 0 | AV69: 0 | AW69: 0 | AX69: 0 | AY69: 0 | BA69: 0 | BB69: 0 | BC69: 0 | BD69: 0 | BE69: 0 | CA69: 3509 | CB69: 0 | CC69: 0 | CD69: 0 | CE69: 0 | CF69: 0 | CG69: 0 | CH69: 0 | CI69: 0 | CJ69: 0 | CK69: 0 | CM69: 3509 | CR69: 0
A70: 3510 | B70: SPRINGFIELD PREPARATORY | C70: 486 | F70: 0 | G70: 485 | I70: 9387889 | J70: 0 | K70: 576180 | L70: 9964069 | AA70: 3510 | AB70: 485 | AC70: 0 | AD70: 0 | AE70: 0 | AF70: 9387889 | AG70: 0 | AH70: 0 | AI70: 9387889 | AJ70: 0 | AK70: 576180 | AL70: 9964069 | AM70: 0 | AN70: 0 | AO70: 0 | AP70: 0 | AQ70: 9964069 | AS70: 3510 | AT70: 184 | AU70: 0 | AV70: 0 | AW70: 0 | AX70: 0 | AY70: 0 | BA70: 0 | BB70: 0 | BC70: 0 | BD70: 0 | BE70: 0 | CA70: 3510 | CB70: 0 | CC70: 0 | CD70: 0 | CE70: 0 | CF70: 0 | CG70: 0 | CH70: 0 | CI70: 0 | CJ70: 0 | CK70: 0 | CM70: 3510 | CR70: 0
A71: 3513 | B71: NEW HEIGHTS CS OF BROCKTON | C71: 735 | F71: 4.007019564 | G71: 734 | I71: 13507032 | J71: 0 | K71: 871992 | L71: 14379024 | AA71: 3513 | AB71: 734 | AC71: 0 | AD71: 0 | AE71: 4.007019564 | AF71: 13507032 | AG71: 73112.07897 | AH71: 0 | AI71: 13433919.92 | AJ71: 0 | AK71: 867192 | AL71: 14301111.92 | AM71: 73112.07897 | AN71: 0 | AO71: 4800 | AP71: 77912.07897 | AQ71: 14379024 | AS71: 3513 | AT71: 114 | AU71: 4.007019564 | AV71: 73112.07897 | AW71: 0 | AX71: 4800 | AY71: 77912.07897 | BA71: 0 | BB71: 0 | BC71: 0 | BD71: 0 | BE71: 0 | CA71: 3513 | CB71: 0 | CC71: 0 | CD71: 0 | CE71: 0 | CF71: 0 | CG71: 0 | CH71: 0 | CI71: 0 | CJ71: 0 | CK71: 0 | CM71: 3513 | CR71: 0
A72: 3514 | B72: LIBERTAS ACADEMY | C72: 611 | F72: 0 | G72: 592 | I72: 12433932 | J72: 0 | K72: 703296 | L72: 13137228 | AA72: 3514 | AB72: 592 | AC72: 0 | AD72: 0 | AE72: 0 | AF72: 12433932 | AG72: 0 | AH72: 0 | AI72: 12433932 | AJ72: 0 | AK72: 703296 | AL72: 13137228 | AM72: 0 | AN72: 0 | AO72: 0 | AP72: 0 | AQ72: 13137228 | AS72: 3514 | AT72: 81 | AU72: 0 | AV72: 0 | AW72: 0 | AX72: 0 | AY72: 0 | BA72: 0 | BB72: 0 | BC72: 0 | BD72: 0 | BE72: 0 | CA72: 3514 | CB72: 0 | CC72: 0 | CD72: 0 | CE72: 0 | CF72: 0 | CG72: 0 | CH72: 0 | CI72: 0 | CJ72: 0 | CK72: 0 | CM72: 3514 | CR72: 0
A73: 3515 | B73: OLD STURBRIDGE ACADEMY | C73: 360 | F73: 0 | G73: 358 | I73: 6425210 | J73: 0 | K73: 425304 | L73: 6850514 | AA73: 3515 | AB73: 358 | AC73: 0 | AD73: 0 | AE73: 0 | AF73: 6425210 | AG73: 0 | AH73: 0 | AI73: 6425210 | AJ73: 0 | AK73: 425304 | AL73: 6850514 | AM73: 0 | AN73: 0 | AO73: 0 | AP73: 0 | AQ73: 6850514 | AS73: 3515 | AT73: 133 | AU73: 0 | AV73: 0 | AW73: 0 | AX73: 0 | AY73: 0 | BA73: 0 | BB73: 0 | BC73: 0 | BD73: 0 | BE73: 0 | CA73: 3515 | CB73: 0 | CC73: 0 | CD73: 0 | CE73: 0 | CF73: 0 | CG73: 0 | CH73: 0 | CI73: 0 | CJ73: 0 | CK73: 0 | CM73: 3515 | CR73: 0
A74: 3517 | B74: MAP ACADEMY | C74: 300 | D74: 6 | F74: 0 | G74: 306 | I74: 7105377 | J74: 0 | K74: 356490 | L74: 7461867 | AA74: 3517 | AB74: 306 | AC74: 6 | AD74: 0 | AE74: 0 | AF74: 7105377 | AG74: 0 | AH74: 0 | AI74: 7105377 | AJ74: 0 | AK74: 356490 | AL74: 7461867 | AM74: 0 | AN74: 0 | AO74: 0 | AP74: 0 | AQ74: 7461867 | AS74: 3517 | AT74: 36 | AU74: 0 | AV74: 0 | AW74: 0 | AX74: 0 | AY74: 0 | BA74: 0 | BB74: 0 | BC74: 0 | BD74: 0 | BE74: 0 | CA74: 3517 | CB74: 0 | CC74: 0 | CD74: 0 | CE74: 0 | CF74: 0 | CG74: 0 | CH74: 0 | CI74: 0 | CJ74: 0 | CK74: 0 | CM74: 3517 | CR74: 0
A75: 3518 | B75: PHOENIX ACADEMY LAWRENCE | C75: 170 | F75: 0 | G75: 133 | I75: 3021910 | J75: 0 | K75: 158004 | L75: 3179914 | AA75: 3518 | AB75: 133 | AC75: 0 | AD75: 0 | AE75: 0 | AF75: 3021910 | AG75: 0 | AH75: 0 | AI75: 3021910 | AJ75: 0 | AK75: 158004 | AL75: 3179914 | AM75: 0 | AN75: 0 | AO75: 0 | AP75: 0 | AQ75: 3179914 | AS75: 3518 | AT75: 0 | AU75: 0 | AV75: 0 | AW75: 0 | AX75: 0 | AY75: 0 | BA75: 0 | BB75: 0 | BC75: 0 | BD75: 0 | BE75: 0 | CA75: 3518 | CB75: 0 | CC75: 0 | CD75: 0 | CE75: 0 | CF75: 0 | CG75: 0 | CH75: 0 | CI75: 0 | CJ75: 0 | CK75: 0 | CM75: 3518 | CR75: 0
A76: 3519 | B76: WORCESTER CULTURAL ACADEMY | C76: 235 | F76: 0 | G76: 230 | I76: 4680667 | J76: 168961 | K76: 273240 | L76: 5122868 | AA76: 3519 | AB76: 230 | AC76: 0 | AD76: 0 | AE76: 0 | AF76: 4680667 | AG76: 0 | AH76: 0 | AI76: 4680667 | AJ76: 168961 | AK76: 273240 | AL76: 5122868 | AM76: 0 | AN76: 0 | AO76: 0 | AP76: 0 | AQ76: 5122868 | AS76: 3519 | AT76: 20 | AU76: 0 | AV76: 0 | AW76: 0 | AX76: 0 | AY76: 0 | BA76: 0 | BB76: 0 | BC76: 0 | BD76: 0 | BE76: 0 | CA76: 3519 | CB76: 0 | CC76: 0 | CD76: 0 | CE76: 0 | CF76: 0 | CG76: 0 | CH76: 0 | CI76: 0 | CJ76: 0 | CK76: 0 | CM76: 3519 | CR76: 0
A78: 9999 | B78: STATE TOTAL | C78: =SUM(C7:C76) -> 47396 | D78: =SUM(D7:D76) -> 157 | E78: =SUM(E7:E76) -> 0 | F78: =SUM(F7:F76) -> 16.94181008 | G78: =SUM(G7:G76) -> 46375 | I78: =SUM(I7:I76) -> 987029961 | J78: =SUM(J7:J76) -> 6223015 | K78: =SUM(K7:K76) -> 54910717 | L78: =SUM(L7:L76) -> 1048163693 | AA78: 9999 | AB78: =SUM(AB10:AB76) -> 46375 | AC78: 157 | AD78: 0 | AE78: 16.94181008 | AF78: 986954790 | AG78: 337689.87 | AH78: 0 | AI78: 986617100.1 | AJ78: 6223015 | AK78: 54887147 | AL78: 1047727262 | AM78: 337689.87 | AN78: 0 | AO78: 20267 | AP78: 357956.87 | AQ78: 1048085219 | AS78: 9999 | AT78: =SUM(AT10:AT76) -> 12635 | AU78: 16.94181008 | AV78: 337689.87 | AW78: 0 | AX78: 20267 | AY78: 357956.87 | BA78: =SUM(BA10:BA76) -> 0 | BB78: =SUM(BB10:BB76) -> 0 | BC78: =SUM(BC10:BC76) -> 0 | BD78: =SUM(BD10:BD76) -> 0 | BE78: =SUM(BE10:BE76) -> 0 | CA78: 999 | CB78: =SUM(CB10:CB76) -> 0 | CC78: 75171 | CD78: 0 | CE78: 3303 | CF78: 78474 | CG78: 0 | CH78: 0 | CI78: 0 | CJ78: 0 | CK78: 78474 | CM78: 9999 | CN78: =SUM(CN10:CN76) -> 0 | CO78: =SUM(CO10:CO76) -> 0 | CP78: =SUM(CP10:CP76) -> 0 | CQ78: =SUM(CQ10:CQ76) -> 0 | CR78: =SUM(CR10:CR76) -> 0
K80: district only | L80: =+AL78+CF78 -> 1047805736
K81: state | L81: =AP78+CJ78 -> 357956.87
K82: district, state and transptn | L82: =+L81+L80 -> 1048163693
A84: 1 | B84: 2 | C84: 3 | D84: 4 | E84: 5 | F84: 6 | G84: 7 | H84: 8 | I84: 9 | J84: 10 | K84: 11 | L84: 12 | N84: 14 | O84: 15 | P84: 16 | Q84: 17 | R84: 18 | S84: 19 | T84: 20 | U84: 21 | V84: 22 | W84: 23 | X84: 24 | Y84: 25 | Z84: 26 | AA84: 27 | AB84: 28 | AC84: 29 | AD84: 30 | AE84: 31 | AF84: 32 | AG84: 33 | AH84: 34 | AI84: 35 | AJ84: 36 | AK84: 37 | AL84: 38 | AM84: 39 | AN84: 40 | AO84: 41 | AP84: 42 | AQ84: 43 | AR84: 44 | AS84: 45 | AT84: 46 | AU84: 47 | AV84: 48 | AW84: 49 | AX84: 50 | AY84: 51 | AZ84: 52 | BA84: 53 | BB84: 54 | BC84: 55 | BD84: 56 | BE84: 57 | BF84: 58 | BG84: 59 | BH84: 60 | BI84: 61 | BJ84: 62 | BK84: 63 | BL84: 64 | BM84: 65 | BN84: 66 | BO84: 67 | BP84: 68 | BQ84: 69 | BR84: 70 | BS84: 71 | BT84: 72 | BU84: 73 | BV84: 74 | BW84: 75 | BX84: 76 | BY84: 77 | BZ84: 78 | CA84: 79 | CB84: 80 | CC84: 81 | CD84: 82 | CE84: 83 | CF84: 84 | CG84: 85 | CH84: 86 | CI84: 87 | CJ84: 88 | CK84: 89 | CL84: 90 | CM84: 91 | CN84: 92 | CO84: 93 | CP84: 94 | CQ84: 95 | CR84: 96 | CS84: 97
AL87: 1078776242 | AM87: 2276905.749 | AN87: 0 | AO87: 119508 | AP87: 2396413.749 | AQ87: 1081172656 | AS87: 9999 | AT87: 11683.92769 | AU87: 92.78983929 | AV87: 2276905.749 | AW87: 0 | AX87: 119508 | AY87: 2396413.749 | BA87: 0 | BB87: 0 | BC87: 0 | BD87: 0 | BE87: 0
AP90: =+L78-AQ78 -> 78474
R442: =AP442+DK442 -> 0 | S442: =AO442+DJ442 -> 0
H452: =H450+R450 -> 0
